bitfinex/quotes_BTCUSD_20240803
["timestamp","ask_amount","ask_price","bid_price","bid_amount"]
[1722704203636,0.00157439,61116.0,61108.0,0.15745924]
[1722704204061,0.47251164,61124.0,61108.0,0.15745924]
[1722704204062,0.00157439,61114.0,61108.0,0.15745924]
[1722704204486,0.2058,61125.0,61108.0,0.15745924]
[1722704204487,0.00157439,61118.0,61108.0,0.15745924]
[1722704204687,0.16363,61114.0,61108.0,0.15745924]
[1722704204918,0.00157439,61115.0,61108.0,0.15745924]
[1722704205147,0.2158,61125.0,61101.0,0.2064]
[1722704205148,0.322231,61119.0,61101.0,0.2064]
[1722704205362,0.2058,61106.0,61083.0,0.07875194]
[1722704205564,0.2058,61106.0,61074.0,0.2064]
[1722704205565,0.1735,61102.0,61074.0,0.2064]
[1722704205768,0.163661,61102.0,61086.0,0.07875194]
[1722704206004,0.00157439,61104.0,61093.0,0.07875194]
[1722704206195,0.337207,61124.0,61088.0,0.4519]
[1722704206196,0.327321,61102.0,61088.0,0.4519]
[1722704206398,0.00157439,61098.0,61080.0,0.4519]
[1722704206666,0.01657439,61114.0,61080.0,0.4519]
[1722704206866,0.01657439,61114.0,61080.0,0.15745924]
[1722704206867,0.4592,61099.0,61080.0,0.15745924]
[1722704207073,0.163696,61089.0,61080.0,0.15745924]
[1722704207285,0.327375,61092.0,61080.0,0.15745924]
[1722704207483,0.163694,61090.0,61088.0,0.001]
[1722704207636,0.163695,61089.0,61088.0,0.001]
[1722704207891,0.163699,61088.0,61080.0,0.15845924]
[1722704208227,0.01,61097.0,61072.0,0.065577]
[1722704208444,0.25382633,61098.0,61073.0,0.23621118]
[1722704208445,0.002,61089.0,61073.0,0.23621118]
[1722704208878,0.002,61089.0,61073.0,0.15745924]
[1722704209309,0.327418,61084.0,61073.0,0.15745924]
[1722704209510,0.002,61089.0,61065.0,0.271984]
[1722704209758,0.327451,61078.0,61066.0,0.15745924]
[1722704209968,0.18434765,61098.0,61080.0,0.006]
[1722704210193,0.45026894,61081.0,61080.0,0.014]
[1722704210399,0.818585,61081.0,61080.0,0.014]
[1722704210606,0.4592,61086.0,61060.0,0.00327509]
[1722704210822,0.327415,61085.0,61060.0,0.00327509]
[1722704211047,0.327415,61085.0,61059.0,0.2455]
[1722704211048,0.47251164,61085.0,61061.0,0.01073826]
[1722704211254,0.47251164,61085.0,61061.0,0.15745924]
[1722704211255,0.327462,61076.0,61061.0,0.15745924]
[1722704211457,0.997085,61081.0,61080.0,0.001]
[1722704211672,1.651953,61081.0,61080.0,0.001]
[1722704211893,0.46821258,61086.0,61054.0,0.00327533]
[1722704212088,0.47251164,61084.0,61060.0,0.15745924]
[1722704212296,0.1735,61081.0,61060.0,0.15745924]
[1722704212512,0.56126358,61082.0,61052.0,0.2455]
[1722704212513,0.07875194,61075.0,61052.0,0.2455]
[1722704212715,0.07875194,61075.0,61053.0,0.15745924]
[1722704212716,0.01,61072.0,61053.0,0.15745924]
[1722704212926,0.45653448,61074.0,61053.0,0.16829606]
[1722704213341,0.163785,61056.0,61053.0,0.16829606]
[1722704213544,0.01,61069.0,61060.0,0.001]
[1722704213949,0.163789,61054.0,61053.0,0.15745924]
[1722704214156,0.33095924,61073.0,61053.0,0.15745924]
[1722704214366,0.163769,61062.0,61061.0,0.01073826]
[1722704214577,0.327515,61066.0,61056.0,0.07875194]
[1722704214795,0.3325,61069.0,61056.0,0.23621118]
[1722704214999,0.163773,61060.0,61056.0,0.23621118]
[1722704215212,0.327542,61061.0,61056.0,0.15745924]
[1722704215414,0.163777,61059.0,61056.0,0.15745924]
[1722704215623,0.163781,61058.0,61057.0,0.01078754]
[1722704215838,0.163789,61054.0,61053.0,0.001]
[1722704216440,0.163787,61055.0,61053.0,0.002]
[1722704216647,0.327558,61058.0,61053.0,0.002]
[1722704216852,0.025684,61059.0,61054.0,0.07875194]
[1722704217056,0.025684,61059.0,61054.0,0.23621118]
[1722704217877,0.353237,61059.0,61054.0,0.15745924]
[1722704218083,0.027684,61059.0,61054.0,0.15745924]
[1722704218292,0.16378,61058.0,61054.0,0.15745924]
[1722704218546,0.027684,61059.0,61054.0,0.15745924]
[1722704218744,0.025684,61059.0,61054.0,0.15745924]
[1722704219354,0.18946,61059.0,61054.0,0.15745924]
[1722704219564,0.19046,61059.0,61054.0,0.15745924]
[1722704219770,0.025684,61059.0,61054.0,0.15745924]
[1722704220221,0.034684,61059.0,61054.0,0.15845924]
[1722704220430,0.029684,61059.0,61054.0,0.15745924]
[1722704220645,0.021684,61059.0,61054.0,0.15745924]
[1722704220849,0.001,61059.0,61054.0,0.15745924]
[1722704221054,0.166776,61059.0,61054.0,0.15745924]
[1722704221311,0.16378,61058.0,61054.0,0.15745924]
[1722704221578,0.003,61059.0,61054.0,0.15745924]
[1722704221983,0.32756,61058.0,61050.0,0.000913]
[1722704222206,0.003,61059.0,61055.0,0.01081218]
[1722704222207,0.491352,61056.0,61055.0,0.01081218]
[1722704222437,0.491352,61056.0,61050.0,0.000913]
[1722704222438,0.491391,61051.0,61050.0,0.000913]
[1722704222678,0.818985,61051.0,61050.0,0.000913]
[1722704222895,0.4492,61054.0,61050.0,0.000913]
[1722704222896,0.2519,61054.0,61050.0,0.000913]
[1722704223108,0.003,61059.0,61050.0,0.000913]
[1722704223109,0.002,61059.0,61051.0,0.15745924]
[1722704223327,0.1973,61067.0,61051.0,0.15745924]
[1722704223549,0.2519,61070.0,61053.0,0.4824]
[1722704223550,0.001,61058.0,61053.0,0.4824]
[1722704223755,0.001,61058.0,61054.0,0.16073455]
[1722704224237,0.33650251,61072.0,61054.0,0.16073455]
[1722704224238,0.00901751,61072.0,61054.0,0.16073455]
[1722704224444,0.47251164,61094.0,61054.0,0.16073455]
[1722704224445,0.002,61059.0,61058.0,0.175778]
[1722704224652,0.002,61059.0,61058.0,1.01000954]
[1722704224858,0.1973,61088.0,61064.0,0.01]
[1722704224859,0.360998,61088.0,61064.0,0.01]
[1722704225065,0.1973,61096.0,61069.0,0.2683]
[1722704225271,0.1973,61096.0,61071.0,0.163743]
[1722704225501,0.2519,61097.0,61085.0,0.07875194]
[1722704225502,0.47251164,61095.0,61085.0,0.07875194]
[1722704225703,0.1973,61103.0,61085.0,0.07875194]
[1722704225704,0.327327,61101.0,61086.0,0.16073296]
[1722704225877,0.00922194,61097.0,61086.0,0.16073296]
[1722704226106,0.1973,61103.0,61087.0,0.4824]
[1722704226295,0.1726328,61103.0,61088.0,0.16073268]
[1722704226501,0.0089728,61103.0,61089.0,0.00327339]
[1722704226715,0.1973,61110.0,61095.0,0.07875194]
[1722704226918,0.01,61132.0,61103.0,0.07875194]
[1722704226919,0.327247,61116.0,61103.0,0.07875194]
[1722704227121,0.1973,61117.0,61104.0,0.160732]
[1722704227322,0.00928856,61116.0,61104.0,0.160732]
[1722704227529,0.1973,61117.0,61104.0,0.160732]
[1722704227735,0.327248,61116.0,61104.0,0.160732]
[1722704227936,0.1973,61117.0,61104.0,0.15745924]
[1722704228165,0.004,61116.0,61104.0,0.15745924]
[1722704228368,0.004,61116.0,61075.0,0.2141]
[1722704228369,0.32731,61104.0,61075.0,0.2141]
[1722704228583,0.32731,61104.0,61069.0,0.09869139]
[1722704228584,0.32731,61104.0,61069.0,0.2141]
[1722704228585,0.07875194,61097.0,61069.0,0.2141]
[1722704228787,0.4492,61101.0,61079.0,0.07875194]
[1722704228988,0.00157439,61100.0,61091.0,0.07875194]
[1722704229197,0.4492,61112.0,61091.0,0.07875194]
[1722704229407,0.327289,61108.0,61091.0,0.07875194]
[1722704229614,0.163652,61105.0,61104.0,0.001]
[1722704229814,1.69352624,61105.0,61104.0,0.001]
[1722704230022,2.24272624,61105.0,61104.0,0.002]
[1722704230224,2.23272624,61105.0,61104.0,0.001]
[1722704230429,2.56003124,61105.0,61104.0,0.001]
[1722704230633,2.23272624,61105.0,61104.0,0.001]
[1722704230833,1.694767,61105.0,61104.0,0.001]
[1722704231029,0.163654,61105.0,61088.0,0.2683]
[1722704231257,0.4492,61118.0,61100.0,0.07875194]
[1722704231258,0.163643,61109.0,61100.0,0.07875194]
[1722704231465,0.014,61112.0,61101.0,0.15745924]
[1722704231667,0.00926241,61114.0,61101.0,0.15745924]
[1722704232127,0.4492,61118.0,61104.0,0.001]
[1722704232128,0.006,61105.0,61104.0,0.001]
[1722704232761,0.327248,61116.0,61104.0,0.001]
[1722704232762,0.1973,61124.0,61104.0,0.15745924]
[1722704232998,0.014,61105.0,61104.0,0.432955]
[1722704233196,0.72441164,61127.0,61104.0,0.2141]
[1722704233402,0.32724,61118.0,61097.0,0.2141]
[1722704233606,0.163631,61113.0,61097.0,0.2141]
[1722704233842,0.163629,61114.0,61097.0,0.2141]
[1722704234053,0.006,61114.0,61101.0,0.001]
[1722704234276,0.163631,61113.0,61101.0,0.001]
[1722704234494,0.327325,61102.0,61091.0,0.2141]
[1722704234714,0.2519,61111.0,61084.0,0.2141]
[1722704234940,0.818355,61098.0,61097.0,0.001]
[1722704235388,0.2519,61111.0,61085.0,0.15745924]
[1722704235629,0.2519,61111.0,61105.0,0.07875194]
[1722704235630,0.00157439,61110.0,61105.0,0.07875194]
[1722704235847,0.63615164,61110.0,61106.0,0.15745924]
[1722704236066,0.00083,61119.0,61106.0,0.15745924]
[1722704236284,0.004,61113.0,61106.0,0.15745924]
[1722704236494,0.004,61113.0,61104.0,0.08202497]
[1722704236495,0.004,61113.0,61107.0,0.160732]
[1722704236945,0.004,61113.0,61107.0,0.15745924]
[1722704236946,0.002,61110.0,61107.0,0.15745924]
[1722704237183,0.002,61110.0,61094.0,0.2141]
[1722704237399,0.004,61113.0,61094.0,0.15745924]
[1722704237621,0.163674,61097.0,61086.0,0.2141]
[1722704237837,0.163672,61098.0,61089.0,0.07875194]
[1722704238051,0.163672,61098.0,61090.0,0.16073269]
[1722704238347,0.327332,61100.0,61090.0,0.15745924]
[1722704238565,0.2519,61109.0,61090.0,0.15745924]
[1722704238566,0.00157439,61099.0,61096.0,0.07875194]
[1722704238775,0.2519,61109.0,61096.0,0.07875194]
[1722704238776,0.327296,61107.0,61097.0,0.15745924]
[1722704238973,0.327305,61105.0,61097.0,0.15745924]
[1722704239182,0.00157439,61104.0,61097.0,0.15745924]
[1722704239401,0.524567,61113.0,61097.0,0.15745924]
[1722704239402,0.163645,61108.0,61097.0,0.15745924]
[1722704239622,0.00083,61119.0,61097.0,0.15745924]
[1722704239623,0.2519,61118.0,61103.0,0.07875194]
[1722704239830,0.2519,61118.0,61098.0,0.07875194]
[1722704239831,0.163647,61108.0,61098.0,0.07875194]
[1722704240043,0.35558924,61119.0,61098.0,0.07875194]
[1722704240044,0.001,61099.0,61098.0,0.07875194]
[1722704240256,0.00083,61119.0,61109.0,0.07875194]
[1722704241912,0.01283,61119.0,61109.0,0.07875194]
[1722704242535,0.00083,61119.0,61110.0,0.15745924]
[1722704242747,0.00083,61119.0,61089.0,0.51318577]
[1722704242748,0.00083,61119.0,61109.0,0.001]
[1722704242749,0.00683,61119.0,61109.0,0.001]
[1722704242960,0.00683,61119.0,61092.0,0.47660598]
[1722704242961,0.00157439,61118.0,61093.0,0.2058]
[1722704243171,0.163648,61107.0,61094.0,0.15745924]
[1722704243356,0.00083,61119.0,61103.0,0.07875194]
[1722704243357,0.163623,61116.0,61103.0,0.07875194]
[1722704243599,0.00083,61119.0,61104.0,0.160732]
[1722704243774,0.00157439,61118.0,61110.0,0.001]
[1722704244007,0.00083,61119.0,61111.0,0.15745924]
[1722704244217,0.00083,61119.0,61111.0,0.23621118]
[1722704244607,0.00157439,61118.0,61112.0,0.00327238]
[1722704244864,0.00083,61119.0,61113.0,0.15745924]
[1722704245063,0.00083,61119.0,61114.0,0.003272]
[1722704245269,0.00083,61119.0,61115.0,0.15745924]
[1722704245484,0.00083,61119.0,61116.0,0.003272]
[1722704245687,0.00083,61119.0,61118.0,0.07875194]
[1722704245862,0.00083,61119.0,61118.0,0.23948318]
[1722704246652,0.00483,61119.0,61118.0,0.23948318]
[1722704246848,0.00083,61119.0,61118.0,0.23948318]
[1722704247207,0.00083,61119.0,61118.0,0.24648318]
[1722704247737,0.00083,61119.0,61118.0,0.41010018]
[1722704247937,0.00083,61119.0,61118.0,0.73733518]
[1722704248187,0.00083,61119.0,61118.0,1.18793518]
[1722704248390,0.00157439,61146.0,61123.0,0.01]
[1722704248599,0.0089777,61152.0,61138.0,0.07875194]
[1722704248736,0.00923,61155.0,61139.0,0.15745924]
[1722704248976,0.00923,61155.0,61140.0,0.24852261]
[1722704249177,0.00923,61155.0,61141.0,0.15745924]
[1722704249428,0.00923,61155.0,61147.0,0.07875194]
[1722704249628,0.00923,61155.0,61148.0,0.16072964]
[1722704249949,0.00923,61155.0,61149.0,0.07875194]
[1722704250076,0.00923,61155.0,61150.0,0.16072951]
[1722704250505,0.01523,61155.0,61150.0,0.16072951]
[1722704250944,0.01523,61155.0,61150.0,0.15745924]
[1722704251282,0.01523,61155.0,61151.0,0.00326988]
[1722704251483,0.00923,61155.0,61152.0,0.15745924]
[1722704251687,0.00923,61155.0,61153.0,0.20906975]
[1722704251838,0.00923,61155.0,61154.0,0.15745924]
[1722704252040,0.00923,61155.0,61154.0,0.160729]
[1722704252243,0.00923,61155.0,61154.0,0.15745924]
[1722704252651,0.01023,61155.0,61154.0,0.15745924]
[1722704252855,0.01023,61155.0,61151.0,0.014]
[1722704252856,0.490579,61152.0,61151.0,0.014]
[1722704253054,1.47484424,61152.0,61151.0,0.014]
[1722704253255,1.68294424,61152.0,61151.0,0.014]
[1722704253468,1.352785,61152.0,61151.0,0.014]
[1722704253873,0.16357,61136.0,61126.0,0.2058]
[1722704254075,0.00157439,61151.0,61127.0,0.15745924]
[1722704254281,0.16357,61136.0,61127.0,0.23621118]
[1722704254482,0.327101,61144.0,61127.0,0.23621118]
[1722704254483,0.163567,61137.0,61127.0,0.23621118]
[1722704254688,0.17427439,61151.0,61127.0,0.15745924]
[1722704254892,0.2081,61152.0,61127.0,0.23621118]
[1722704255095,0.00157439,61141.0,61127.0,0.23621118]
[1722704255297,0.2675,61157.0,61136.0,0.23621118]
[1722704255298,0.00923,61155.0,61136.0,0.23621118]
[1722704255541,0.00157439,61153.0,61136.0,0.15745924]
[1722704255690,0.327072,61149.0,61136.0,0.15745924]
[1722704255890,0.163561,61140.0,61136.0,0.15745924]
[1722704256090,0.163556,61141.0,61136.0,0.15745924]
[1722704256458,0.01,61151.0,61140.0,0.07875194]
[1722704256765,0.163541,61147.0,61141.0,0.15745924]
[1722704256973,0.00157439,61146.0,61141.0,0.15745924]
[1722704257204,0.00157439,61150.0,61141.0,0.16073014]
[1722704257423,0.00157439,61154.0,61141.0,0.15745924]
[1722704257632,0.00923,61155.0,61136.0,0.001]
[1722704257633,0.16445924,61153.0,61136.0,0.001]
[1722704257902,0.163565,61138.0,61136.0,0.001]
[1722704258124,0.00157439,61137.0,61127.0,0.17875194]
[1722704258410,0.327116,61141.0,61134.0,0.07875194]
[1722704258601,0.00157439,61140.0,61128.0,0.15745924]
[1722704258821,0.00157439,61133.0,61128.0,0.15745924]
[1722704259297,0.2675,61139.0,61136.0,0.002]
[1722704259498,0.490701,61137.0,61136.0,0.002]
[1722704259711,0.490701,61137.0,61098.0,0.2058]
[1722704259712,0.163612,61120.0,61098.0,0.2058]
[1722704259980,0.966437,61120.0,61098.0,0.2058]
[1722704260528,0.1727,61130.0,61098.0,0.2058]
[1722704260529,0.4756,61129.0,61103.0,0.07875194]
[1722704260760,0.163612,61120.0,61103.0,0.07875194]
[1722704261044,0.002,61120.0,61110.0,0.07875194]
[1722704261274,0.327183,61128.0,61110.0,0.07875194]
[1722704261537,0.4756,61129.0,61110.0,0.07875194]
[1722704261538,0.163612,61120.0,61110.0,0.07875194]
[1722704261785,0.327187,61127.0,61110.0,0.07875194]
[1722704261786,0.4756,61129.0,61110.0,0.07875194]
[1722704262051,0.4756,61129.0,61120.0,0.23621118]
[1722704262052,0.006,61129.0,61120.0,0.23621118]
[1722704262551,0.00930203,61135.0,61120.0,0.23948316]
[1722704262782,0.327151,61134.0,61120.0,0.23948316]
[1722704263021,0.53704,61136.0,61120.0,0.23948316]
[1722704263258,0.21899448,61136.0,61120.0,0.23621118]
[1722704263525,0.163588,61129.0,61120.0,0.23621118]
[1722704263776,0.163588,61129.0,61120.0,0.15845924]
[1722704263777,0.008,61129.0,61120.0,0.15845924]
[1722704264045,0.163599,61125.0,61120.0,0.15745924]
[1722704264289,0.21899448,61136.0,61120.0,0.23621118]
[1722704264521,0.21899448,61136.0,61120.0,0.23948312]
[1722704264522,0.163579,61133.0,61120.0,0.23948312]
[1722704264771,0.22699448,61136.0,61127.0,0.07875194]
[1722704265028,0.22699448,61136.0,61128.0,0.16073077]
[1722704265029,0.022,61136.0,61128.0,0.16073077]
[1722704265276,0.163579,61133.0,61128.0,0.15745924]
[1722704265541,0.163581,61132.0,61120.0,0.07975194]
[1722704265821,0.014,61136.0,61121.0,0.15745924]
[1722704265822,0.002,61125.0,61121.0,0.15745924]
[1722704266049,0.002,61125.0,61121.0,0.1607309]
[1722704266324,0.002,61125.0,61122.0,0.163605]
[1722704266601,0.002,61125.0,61122.0,0.0032713]
[1722704266859,0.008,61136.0,61123.0,0.023]
[1722704267149,0.47251164,61134.0,61129.0,0.07875194]
[1722704267419,0.003,61136.0,61130.0,0.15745924]
[1722704267694,0.79963864,61139.0,61130.0,0.15745924]
[1722704267907,0.163567,61137.0,61130.0,0.15745924]
[1722704268161,0.27544581,61146.0,61130.0,0.15745924]
[1722704268162,0.00157439,61136.0,61131.0,0.08202341]
[1722704268390,0.2664,61146.0,61132.0,0.15745924]
[1722704268658,0.2664,61146.0,61133.0,0.00327096]
[1722704268884,0.2664,61146.0,61134.0,0.15745924]
[1722704269130,0.2664,61146.0,61138.0,0.07875194]
[1722704269379,0.00157439,61145.0,61139.0,0.15745924]
[1722704269619,0.2664,61146.0,61139.0,0.15745924]
[1722704269620,0.163559,61140.0,61139.0,0.15745924]
[1722704269885,0.163559,61140.0,61127.0,0.07875194]
[1722704269886,0.327118,61140.0,61127.0,0.07875194]
[1722704270157,0.00157439,61141.0,61128.0,0.15745924]
[1722704270413,0.163557,61141.0,61129.0,0.1]
[1722704270665,0.163557,61141.0,61134.0,0.07875194]
[1722704270666,0.00157439,61141.0,61134.0,0.07875194]
[1722704270923,0.163556,61141.0,61139.0,0.005]
[1722704271157,0.163556,61141.0,61134.0,0.23621118]
[1722704271158,0.00157439,61141.0,61134.0,0.23621118]
[1722704271406,0.163554,61142.0,61134.0,0.23621118]
[1722704271614,0.16513039,61142.0,61134.0,0.23621118]
[1722704271832,0.00157439,61140.0,61134.0,0.23621118]
[1722704272042,0.163548,61144.0,61135.0,0.16073052]
[1722704272243,0.2664,61146.0,61135.0,0.15745924]
[1722704272416,0.17152895,61145.0,61127.0,0.09684968]
[1722704272616,0.163572,61135.0,61128.0,0.15745924]
[1722704272837,0.2664,61146.0,61128.0,0.15745924]
[1722704273047,0.163568,61137.0,61129.0,0.07875194]
[1722704273225,0.16357,61136.0,61130.0,0.15745924]
[1722704273434,0.00157439,61145.0,61131.0,0.07875194]
[1722704273643,0.163561,61140.0,61132.0,0.15745924]
[1722704273840,0.163562,61139.0,61132.0,0.15745924]
[1722704274072,0.163554,61142.0,61132.0,0.15745924]
[1722704274280,0.2664,61146.0,61138.0,0.07875194]
[1722704274451,0.163556,61141.0,61132.0,0.15745924]
[1722704274883,0.327078,61148.0,61146.0,1.30386776]
[1722704274884,0.49062,61147.0,61146.0,1.30386776]
[1722704275078,0.81904866,61147.0,61146.0,1.30386776]
[1722704275280,0.8177,61147.0,61146.0,1.30386776]
[1722704275486,1.14478,61147.0,61146.0,1.30386776]
[1722704275991,0.49062,61147.0,61146.0,1.30386776]
[1722704276099,0.18193,61155.0,61146.0,1.30386776]
[1722704276359,0.327043,61154.0,61146.0,1.30386776]
[1722704276575,0.327043,61154.0,61146.0,1.461327]
[1722704276576,0.327045,61154.0,61146.0,1.461327]
[1722704276780,0.16353,61151.0,61146.0,1.461327]
[1722704277069,0.008,61147.0,61146.0,1.462327]
[1722704277487,0.012,61147.0,61146.0,1.462327]
[1722704277662,0.012,61147.0,61146.0,1.30486776]
[1722704277875,1.0961,61147.0,61146.0,1.30586776]
[1722704278165,2.12761924,61147.0,61146.0,1.21482256]
[1722704278366,2.12761924,61147.0,61146.0,1.10884541]
[1722704278367,2.61427687,61147.0,61146.0,1.10884541]
[1722704278579,2.61427687,61147.0,61102.0,0.472]
[1722704278580,0.2664,61123.0,61102.0,0.472]
[1722704278761,0.2664,61123.0,61115.0,0.47251164]
[1722704278908,0.16363,61114.0,61103.0,0.23621118]
[1722704279107,0.163629,61114.0,61103.0,0.23621118]
[1722704279359,0.327256,61115.0,61103.0,0.15745924]
[1722704279511,0.163634,61112.0,61103.0,0.15745924]
[1722704279713,0.327252,61115.0,61103.0,0.15745924]
[1722704279918,0.327268,61112.0,61103.0,0.15745924]
[1722704280123,0.327268,61112.0,61103.0,0.001]
[1722704280349,0.163655,61104.0,61103.0,0.001]
[1722704280547,0.16365,61106.0,61093.0,0.2618]
[1722704280750,0.327263,61113.0,61094.0,0.15745924]
[1722704280955,0.01,61112.0,61103.0,0.001]
[1722704281154,0.007,61112.0,61103.0,0.001]
[1722704281359,0.818275,61104.0,61103.0,0.001]
[1722704281571,0.818275,61104.0,61092.0,0.19600047]
[1722704281572,0.163664,61101.0,61092.0,0.19600047]
[1722704281785,0.16524139,61100.0,61092.0,0.19600047]
[1722704282000,0.00157439,61100.0,61094.0,0.001]
[1722704282208,0.16367,61099.0,61094.0,0.001]
[1722704282413,0.00157439,61098.0,61094.0,0.001]
[1722704282650,0.491038,61095.0,61094.0,0.001]
[1722704282852,0.818397,61095.0,61094.0,0.001]
[1722704283262,0.491038,61095.0,61094.0,0.001]
[1722704283472,0.818397,61095.0,61094.0,0.001]
[1722704283677,0.818397,61095.0,61065.0,0.4675]
[1722704283678,0.163711,61084.0,61070.0,0.2616]
[1722704283931,0.07875194,61089.0,61059.0,0.000913]
[1722704284157,0.327445,61079.0,61060.0,0.23621118]
[1722704284364,0.64521164,61086.0,61060.0,0.16820982]
[1722704284569,0.64521164,61086.0,61059.0,0.000913]
[1722704284570,0.327486,61072.0,61059.0,0.000913]
[1722704284772,0.163767,61062.0,61061.0,0.01073826]
[1722704284986,0.163773,61060.0,61059.0,0.000913]
[1722704285194,0.491319,61060.0,61059.0,0.000913]
[1722704285405,0.491319,61060.0,61059.0,0.0116759]
[1722704285608,0.163773,61060.0,61059.0,0.000913]
[1722704285805,0.4532,61068.0,61059.0,0.000913]
[1722704286102,0.33015924,61067.0,61059.0,0.000913]
[1722704286304,0.32754,61062.0,61059.0,0.000913]
[1722704286481,0.163758,61066.0,61059.0,0.000913]
[1722704286801,0.168742,61072.0,61060.0,0.07875194]
[1722704287005,0.163733,61075.0,61067.0,0.07875194]
[1722704287219,0.2071,61082.0,61067.0,0.07875194]
[1722704287425,0.014,61068.0,61067.0,0.07875194]
[1722704287633,0.014,61068.0,61067.0,0.28855194]
[1722704288185,0.028,61072.0,61067.0,0.28855194]
[1722704288611,0.014,61072.0,61067.0,0.28855194]
[1722704288768,0.014,61072.0,61068.0,0.15745924]
[1722704289026,0.014,61072.0,61067.0,0.002]
[1722704289027,0.944454,61068.0,61067.0,0.002]
[1722704289229,1.271957,61068.0,61067.0,0.002]
[1722704289437,1.59946,61068.0,61067.0,0.002]
[1722704290081,1.92961924,61068.0,61067.0,0.002]
[1722704290287,0.818865,61060.0,61059.0,0.000913]
[1722704290688,0.163771,61061.0,61059.0,0.000913]
[1722704290903,0.2471,61068.0,61060.0,0.07875194]
[1722704291106,0.00909971,61072.0,61060.0,0.23621118]
[1722704291306,0.163762,61064.0,61059.0,0.202113]
[1722704291569,0.005,61068.0,61061.0,0.0894902]
[1722704291784,0.327524,61065.0,61060.0,0.01075058]
[1722704291985,0.005,61068.0,61062.0,0.01072595]
[1722704291986,0.327516,61066.0,61062.0,0.01072595]
[1722704292187,0.01,61068.0,61064.0,0.07875194]
[1722704292396,0.005,61068.0,61064.0,0.07875194]
[1722704292597,0.005,61068.0,61065.0,0.15745924]
[1722704293020,0.005,61068.0,61066.0,0.07875194]
[1722704293222,0.163773,61060.0,61059.0,0.002913]
[1722704293592,0.818865,61060.0,61059.0,0.0146759]
[1722704293796,0.818865,61060.0,61059.0,0.003913]
[1722704294034,0.818865,61060.0,61059.0,0.002913]
[1722704294207,0.818865,61060.0,61059.0,0.000913]
[1722704294585,0.2561,61064.0,61059.0,0.000913]
[1722704294759,0.47251164,61062.0,61059.0,0.000913]
[1722704294960,0.166773,61060.0,61059.0,0.000913]
[1722704295164,0.003,61060.0,61059.0,0.000913]
[1722704295395,0.166773,61060.0,61059.0,0.000913]
[1722704295601,0.01,61059.0,61050.0,0.000913]
[1722704295821,1.454507,61042.0,61041.0,3.0]
[1722704296024,1.98995,61042.0,61041.0,2.67561822]
[1722704296266,2.427593,61042.0,61041.0,2.67561822]
[1722704296458,2.08995,61042.0,61041.0,2.67561822]
[1722704296831,2.57505224,61042.0,61041.0,2.67561822]
[1722704297024,0.626521,61042.0,61041.0,2.67561822]
[1722704297225,0.819107,61042.0,61041.0,2.67561822]
[1722704297426,1.14675,61042.0,61041.0,2.67561822]
[1722704297629,1.63185224,61042.0,61041.0,2.67561822]
[1722704297835,1.63185224,61042.0,61026.0,0.010142]
[1722704297836,0.01,61035.0,61026.0,0.010142]
[1722704297991,1.06563424,61042.0,61026.0,0.010142]
[1722704297992,1.39848194,61027.0,61026.0,0.010142]
[1722704298196,0.501601,61025.0,61024.0,0.010142]
[1722704298436,0.501601,61025.0,61011.0,0.010142]
[1722704298437,0.163902,61012.0,61011.0,0.010142]
[1722704298942,0.491706,61012.0,61011.0,0.010142]
[1722704299150,1.07561,61012.0,61011.0,0.010142]
[1722704299378,1.403414,61012.0,61011.0,0.010142]
[1722704299565,1.83357324,61012.0,61011.0,0.010142]
[1722704300168,0.847806,61012.0,61011.0,0.010142]
[1722704300374,0.420002,61012.0,61011.0,0.010142]
[1722704300566,0.003,61012.0,61011.0,0.010142]
[1722704301016,0.26768945,61021.0,61011.0,0.010142]
[1722704301277,0.015,61012.0,61011.0,0.010142]
[1722704301675,0.496706,61012.0,61011.0,0.010142]
[1722704301823,0.491706,61012.0,61011.0,0.010142]
[1722704302030,0.494706,61012.0,61011.0,0.010142]
[1722704302234,0.82751,61012.0,61011.0,0.010142]
[1722704302445,0.499706,61012.0,61011.0,0.010142]
[1722704302616,0.003,61012.0,61011.0,0.010142]
[1722704302821,0.171902,61012.0,61011.0,0.010142]
[1722704303021,0.008,61012.0,61011.0,0.010142]
[1722704303234,0.005,61012.0,61011.0,0.010142]
[1722704303513,0.008,61012.0,61011.0,0.16760124]
[1722704303621,0.008,61012.0,61011.0,1.2185923]
[1722704303826,0.005,61012.0,61011.0,0.8907833]
[1722704304055,0.005,61012.0,61011.0,1.2515923]
[1722704304263,0.008,61012.0,61011.0,0.72360124]
[1722704304469,0.003,61012.0,61011.0,0.72360124]
[1722704304675,0.009,61012.0,61011.0,1.57712324]
[1722704304874,0.47251164,61029.0,61017.0,0.01]
[1722704305081,0.47251164,61029.0,61025.0,0.07875194]
[1722704305290,0.163822,61042.0,61026.0,0.15745924]
[1722704305495,0.163822,61042.0,61027.0,0.2078]
[1722704305887,0.327649,61041.0,61029.0,0.2482]
[1722704306098,0.07875194,61044.0,61020.0,0.2482]
[1722704306308,0.07875194,61037.0,61025.0,0.008]
[1722704306514,0.163864,61026.0,61025.0,0.008]
[1722704306735,0.001,61029.0,61025.0,0.008]
[1722704306958,0.163864,61026.0,61025.0,0.008]
[1722704307712,0.163867,61025.0,61013.0,0.07875194]
[1722704307950,0.327712,61030.0,61012.0,1.1988]
[1722704307951,0.163853,61030.0,61029.0,0.001]
[1722704308152,0.819267,61030.0,61029.0,0.001]
[1722704308425,1.146974,61030.0,61029.0,0.001]
[1722704308635,0.2078,61037.0,61014.0,0.15745924]
[1722704308847,0.002,61026.0,61014.0,0.15745924]
[1722704309070,0.491697,61013.0,61012.0,0.991]
[1722704309472,0.819495,61013.0,61012.0,0.991]
[1722704309695,0.491697,61013.0,61012.0,0.991]
[1722704309898,0.327785,61016.0,61012.0,0.991]
[1722704310102,0.163898,61014.0,61013.0,0.002]